bitfinex-derivatives/quotes_BTCF0:USTF0_20241208
["timestamp","ask_amount","ask_price","bid_price","bid_amount"]
[1733660826922,0.11983958,99843.0,99837.0,0.00813863]
[1733660827124,0.0303,99844.0,99843.0,0.045041]
[1733660827318,0.0303,99844.0,99843.0,0.05317963]
[1733660827530,0.15003147,99844.0,99843.0,0.05317963]
[1733660827835,0.0303,99844.0,99843.0,0.04817124]
[1733660828224,0.0303,99844.0,99843.0,0.04917124]
[1733660828526,0.0333,99844.0,99843.0,0.04917124]
[1733660829628,0.15299508,99844.0,99843.0,0.04917088]
[1733660830422,0.0333,99844.0,99843.0,0.04917088]
[1733660831224,0.003,99844.0,99843.0,0.04917088]
[1733660831419,0.003,99844.0,99843.0,0.05429175]
[1733660831925,0.003,99844.0,99843.0,0.04928422]
[1733660832632,0.003,99844.0,99843.0,0.04615434]
[1733660833924,0.003,99844.0,99843.0,0.05429075]
[1733660834728,0.003,99844.0,99843.0,0.04615434]
[1733660834929,0.003,99844.0,99843.0,0.0542906]
[1733660837932,0.003,99844.0,99843.0,0.15444734]
[1733660839041,7.449e-05,99850.0,99843.0,0.15444734]
[1733660839042,7.449e-05,99850.0,99849.0,0.045038]
[1733660839229,7.449e-05,99850.0,99849.0,0.405838]
[1733660840132,0.00107449,99850.0,99849.0,0.405838]
[1733660840532,4.9e-07,99850.0,99849.0,0.50698872]
[1733660842139,4.9e-07,99850.0,99849.0,0.51512384]
[1733660842938,0.005,99870.0,99868.0,0.04503]
[1733660842939,0.12207876,99869.0,99868.0,0.04503]
[1733660843241,0.12207876,99869.0,99857.0,0.045035]
[1733660843242,0.0326,99869.0,99865.0,0.35979376]
[1733660843545,0.0326,99869.0,99866.0,0.0031288]
[1733660843848,0.0326,99869.0,99867.0,0.00312884]
[1733660844142,0.0326,99869.0,99868.0,0.001]
[1733660844638,0.0326,99869.0,99868.0,0.00312878]
[1733660844942,0.0326,99869.0,99868.0,0.04815878]
[1733660845237,0.0326,99869.0,99868.0,0.04503]
[1733660845828,0.0326,99869.0,99868.0,0.04603]
[1733660846241,0.0326,99869.0,99868.0,0.04915904]
[1733660846437,0.0326,99869.0,99868.0,0.04603]
[1733660847042,0.0326,99869.0,99868.0,0.04915899]
[1733660848738,0.077629,99869.0,99868.0,0.04915899]
[1733660850635,0.16710776,99869.0,99868.0,0.04915899]
[1733660851341,0.16710776,99869.0,99865.0,0.37041802]
[1733660851342,0.0326,99869.0,99865.0,0.37041802]
[1733660851542,0.045035,99859.0,99858.0,0.045034]
[1733660851742,0.16452728,99859.0,99858.0,0.045034]
[1733660851941,0.045035,99859.0,99858.0,0.045034]
[1733660852749,0.045035,99859.0,99849.0,0.3608]
[1733660852750,0.14978457,99862.0,99861.0,0.045033]
[1733660853040,0.19481557,99866.0,99865.0,0.045031]
[1733660853245,0.405831,99866.0,99865.0,0.045031]
[1733660853461,0.45450073,99866.0,99865.0,0.045031]
[1733660853637,0.45450073,99866.0,99865.0,0.046031]
[1733660854241,0.45450073,99866.0,99865.0,0.001]
[1733660855349,0.40946973,99866.0,99856.0,0.045035]
[1733660855552,0.045035,99857.0,99856.0,0.045035]
[1733660855739,0.22459915,99857.0,99856.0,0.045035]
[1733660855940,0.22459915,99857.0,99849.0,0.37117328]
[1733660855941,0.045038,99851.0,99849.0,0.37117328]
[1733660856149,0.045038,99851.0,99850.0,0.045038]
[1733660856446,0.09371339,99851.0,99850.0,0.045038]
[1733660858347,0.045038,99851.0,99850.0,0.045038]
[1733660860040,0.19679574,99851.0,99850.0,0.045038]
[1733660860245,0.047038,99851.0,99850.0,0.045038]
[1733660861253,0.19679574,99851.0,99850.0,0.045038]
[1733660861455,0.19679574,99851.0,99850.0,0.05004542]
[1733660861857,0.047038,99851.0,99850.0,0.05004542]
[1733660862354,0.19690001,99851.0,99850.0,0.05004542]
[1733660862658,0.04504,99846.0,99845.0,0.00975098]
[1733660862952,0.045041,99844.0,99839.0,0.045043]
[1733660863148,0.045041,99844.0,99843.0,0.00512113]
[1733660863347,0.09372151,99844.0,99843.0,0.00825121]
[1733660864660,0.66832476,99844.0,99843.0,0.00825121]
[1733660865161,0.66932476,99844.0,99843.0,0.00825121]
[1733660865347,0.66932476,99844.0,99843.0,0.00324342]
[1733660865553,0.48952151,99844.0,99843.0,0.00324342]
[1733660866160,0.48952151,99844.0,99843.0,0.00324359]
[1733660867267,0.6691656,99844.0,99843.0,0.00324359]
[1733660867561,0.48952151,99844.0,99843.0,0.00324359]
[1733660869257,0.48952151,99844.0,99843.0,0.00011334]
[1733660869566,0.66906958,99844.0,99843.0,0.00011334]
[1733660870167,0.30826958,99844.0,99843.0,0.00011334]
[1733660870372,0.66906958,99844.0,99843.0,0.00011334]
[1733660870555,0.48952151,99844.0,99843.0,0.00011334]
[1733660873265,0.045049,99826.0,99825.0,0.01]
[1733660873564,0.045049,99826.0,99825.0,0.00313038]
[1733660873760,0.13479537,99826.0,99825.0,0.00313038]
[1733660873955,0.16499537,99826.0,99825.0,0.00313038]
[1733660874156,0.075249,99826.0,99825.0,0.00313038]
[1733660874563,0.075249,99826.0,99820.0,0.00010192]
[1733660874564,0.045051,99821.0,99820.0,0.00010192]
[1733660874861,0.405851,99821.0,99820.0,0.00323259]
[1733660875068,0.405851,99821.0,99820.0,0.00010192]
[1733660876366,0.405851,99821.0,99820.0,0.00723264]
[1733660876765,0.405851,99821.0,99820.0,0.00410192]
[1733660876955,0.405851,99821.0,99820.0,0.00723267]
[1733660877658,0.405851,99821.0,99820.0,0.00410192]
[1733660880358,0.405851,99821.0,99820.0,0.05228369]
[1733660880559,0.405851,99821.0,99820.0,0.00410192]
[1733660880968,0.405851,99821.0,99820.0,0.00723268]
[1733660883075,0.405851,99821.0,99820.0,0.00723268]
[1733660884562,0.52549826,99821.0,99820.0,0.00723268]
[1733660884772,0.16469826,99821.0,99820.0,0.00723268]
[1733660884970,0.52549826,99821.0,99820.0,0.00723268]
[1733660886463,0.405851,99821.0,99820.0,0.00723268]
[1733660888967,0.55542825,99821.0,99820.0,0.00723268]
[1733660889678,0.45454603,99821.0,99820.0,0.00723268]
[1733660891468,0.63403873,99821.0,99820.0,0.00523268]
[1733660891673,0.63603873,99821.0,99820.0,0.00423268]
[1733660891972,0.45654603,99821.0,99820.0,0.00423268]
[1733660893261,0.63603873,99821.0,99820.0,0.00423268]
[1733660893475,0.63403873,99821.0,99820.0,0.00323268]
[1733660893672,0.63603873,99821.0,99820.0,0.00423268]
[1733660893977,0.63603873,99821.0,99820.0,0.00423284]
[1733660895178,0.63603873,99821.0,99820.0,0.00110192]
[1733660895374,0.63603873,99821.0,99820.0,0.00423284]
[1733660896072,0.45654603,99821.0,99820.0,0.00423284]
[1733660896277,0.63603873,99821.0,99820.0,0.00423284]
[1733660896479,0.45654603,99821.0,99820.0,0.00423284]
[1733660898279,0.45654603,99821.0,99820.0,0.00110192]
[1733660899575,0.63603873,99821.0,99820.0,0.00110192]
[1733660899972,0.59098773,99821.0,99820.0,0.00110192]
[1733660900185,0.59098773,99821.0,99820.0,0.04515292]
[1733660900186,0.51076829,99821.0,99820.0,0.04515292]
[1733660900385,0.3628,99821.0,99820.0,0.04615292]
[1733660900683,0.3628,99821.0,99820.0,0.05605099]
[1733660901383,0.3628,99821.0,99820.0,0.05505099]
[1733660901973,0.3628,99821.0,99820.0,0.06319022]
[1733660902773,0.407851,99821.0,99820.0,0.05329215]
[1733660903673,0.45654092,99821.0,99820.0,0.05329215]
[1733660905180,0.09574092,99821.0,99820.0,0.05329215]
[1733660907074,0.09574093,99821.0,99820.0,0.05329215]
[1733660908077,0.047051,99821.0,99820.0,0.05329215]
[1733660908878,0.095741,99821.0,99820.0,0.05329215]
[1733660911278,0.047051,99821.0,99820.0,0.05329215]
[1733660914286,0.047051,99821.0,99820.0,0.0532921]
[1733660915090,0.047051,99821.0,99820.0,0.05329212]
[1733660916295,0.002,99821.0,99820.0,0.05329212]
[1733660918681,0.05068946,99821.0,99820.0,0.05016164]
[1733660918887,0.05068946,99821.0,99820.0,0.05329209]
[1733660919298,0.05068952,99821.0,99820.0,0.05329209]
[1733660923292,0.15199677,99821.0,99820.0,0.05329209]
[1733660923494,0.002,99821.0,99820.0,0.05329209]
[1733660925997,0.002,99821.0,99820.0,0.05329158]
[1733660926589,0.12202789,99821.0,99820.0,0.23294286]
[1733660927295,0.002,99821.0,99820.0,0.05329158]
[1733660927601,0.12205054,99821.0,99820.0,0.05329158]
[1733660928100,0.12204707,99821.0,99820.0,0.05329158]
[1733660928397,0.002,99821.0,99820.0,0.05329158]
[1733660930488,0.002,99821.0,99820.0,0.29259109]
[1733660931291,0.002,99821.0,99820.0,0.29297846]
[1733660931690,0.002,99821.0,99820.0,0.05329158]
[1733660932099,0.002,99821.0,99820.0,0.05955225]
[1733660932291,0.002,99821.0,99820.0,0.29923272]
[1733660932893,0.002,99821.0,99820.0,0.05955225]
[1733660934198,0.002,99821.0,99820.0,0.29922295]
[1733660934789,0.002,99821.0,99820.0,0.05955225]
[1733660935394,0.08717761,99825.0,99820.0,0.32920122]
[1733660935598,0.12012112,99831.0,99824.0,0.29949062]
[1733660935794,0.3608,99852.0,99831.0,0.045046]
[1733660935795,0.12012112,99832.0,99831.0,0.045046]
[1733660935994,0.12012112,99832.0,99831.0,0.2990174]
[1733660936195,0.15222112,99838.0,99831.0,0.00813778]
[1733660936404,0.0321,99838.0,99837.0,0.2245998]
[1733660936606,0.0321,99838.0,99837.0,0.05318178]
[1733660937702,0.0321,99838.0,99837.0,0.05418178]
[1733660938010,0.0321,99838.0,99837.0,0.23366398]
[1733660938196,0.0321,99838.0,99837.0,0.06410073]
[1733660940407,0.0321,99838.0,99837.0,0.0641003]
[1733660943897,0.15195795,99838.0,99837.0,0.0641003]
[1733660944203,0.0321,99838.0,99837.0,0.0641003]
[1733660945105,0.1519328,99838.0,99837.0,0.0641003]
[1733660945514,0.0321,99838.0,99837.0,0.0641003]
[1733660945699,0.077143,99838.0,99837.0,0.05418135]
[1733660945904,0.437943,99838.0,99837.0,0.05418135]
[1733660946310,0.437943,99838.0,99837.0,0.00428135]
[1733660946811,0.437943,99838.0,99837.0,0.04932535]
[1733660947015,0.48662507,99838.0,99837.0,0.04932535]
[1733660947410,0.48662507,99838.0,99837.0,0.045044]
[1733660948408,0.437943,99838.0,99837.0,0.045044]
[1733660952023,0.3608,99838.0,99837.0,0.045044]
[1733660952717,0.48069366,99838.0,99837.0,0.045044]
[1733660953112,0.3608,99838.0,99837.0,0.045044]
[1733660953904,0.48069772,99838.0,99837.0,0.045044]
[1733660954106,0.11989772,99843.0,99838.0,0.045043]
[1733660954307,0.11989772,99843.0,99842.0,0.045041]
[1733660954509,0.11989772,99844.0,99843.0,0.045041]
[1733660954912,0.11989772,99845.0,99844.0,0.045041]
[1733660955113,0.11989772,99846.0,99843.0,0.045041]
[1733660955313,0.11989772,99846.0,99845.0,0.04504]
[1733660955515,0.11989772,99847.0,99843.0,0.045041]
[1733660955716,0.11989772,99847.0,99846.0,0.04504]
[1733660955919,0.11989772,99849.0,99846.0,0.3608]
[1733660956226,0.11989772,99853.0,99851.0,0.045037]
[1733660956414,0.3608,99856.0,99855.0,0.045036]
[1733660956609,0.40947326,99856.0,99855.0,0.05004317]
[1733660957622,0.41047326,99856.0,99855.0,0.05104317]
[1733660957817,0.3618,99856.0,99855.0,0.05104317]
[1733660958016,0.41047305,99856.0,99855.0,0.05104317]
[1733660958223,0.41047305,99856.0,99855.0,0.05417256]
[1733660959121,0.04967305,99856.0,99855.0,0.05417256]
[1733660960914,0.04967279,99856.0,99855.0,0.046036]
[1733660961113,0.001,99856.0,99855.0,0.05417237]
[1733660961521,0.001,99856.0,99855.0,0.051043]
[1733660961715,0.001,99856.0,99855.0,0.06120069]
[1733660962222,0.001,99856.0,99855.0,0.05619369]
[1733660962527,0.4254,99877.0,99855.0,0.05619369]
[1733660962528,0.3608,99886.0,99877.0,0.045026]
[1733660962721,0.00080001,99877.0,99869.0,0.045029]
[1733660963225,0.00010888,99880.0,99879.0,0.045025]
[1733660963425,0.04877639,99880.0,99879.0,0.045025]
[1733660963622,0.25174454,99880.0,99879.0,0.05003127]
[1733660963922,0.09380039,99880.0,99879.0,0.05003127]
[1733660964516,0.09480039,99880.0,99879.0,0.05003127]
[1733660965217,0.09480039,99880.0,99879.0,0.00500627]
[1733660966319,0.24872811,99880.0,99879.0,0.00500627]
[1733660968728,0.24873476,99880.0,99879.0,0.00500627]
[1733660969118,0.09480324,99880.0,99879.0,0.00500627]
[1733660971136,0.24869546,99880.0,99879.0,0.00500627]
[1733660972733,0.09480324,99880.0,99879.0,0.00500627]
[1733660974333,0.09380324,99880.0,99879.0,0.00500627]
[1733660974529,0.09380324,99880.0,99879.0,0.00600627]
[1733660975437,0.09380324,99880.0,99879.0,0.001]
[1733660975636,0.09380324,99880.0,99861.0,0.01018229]
[1733660975930,0.045034,99858.0,99857.0,0.045034]
[1733660976235,0.045034,99858.0,99857.0,0.05317052]
[1733660976828,0.045034,99858.0,99857.0,0.00813652]
[1733660977331,0.046034,99858.0,99857.0,0.00813652]
[1733660978133,0.046034,99858.0,99857.0,0.01795283]
[1733660978328,0.045037,99852.0,99851.0,0.045037]
[1733660978528,0.045037,99852.0,99851.0,0.05317375]
[1733660980027,0.047037,99852.0,99851.0,0.05317375]
[1733660980230,0.047037,99852.0,99851.0,0.06314816]
[1733660980428,0.047037,99852.0,99851.0,0.01811116]
[1733660980739,0.09571215,99852.0,99851.0,0.01811117]
[1733660982430,0.09571215,99852.0,99851.0,0.00813676]
[1733660982731,0.6093216,99852.0,99851.0,0.00813676]
[1733660982927,0.6093216,99852.0,99841.0,0.00979841]
[1733660983130,0.405841,99842.0,99830.0,0.045047]
[1733660983327,0.045046,99831.0,99830.0,0.045047]
[1733660983644,0.045046,99831.0,99830.0,0.05005523]
[1733660984842,0.046046,99831.0,99830.0,0.0599421]
[1733660985138,0.19586549,99831.0,99830.0,0.05005523]
[1733660985530,0.19586549,99831.0,99830.0,0.00500823]
[1733660986137,0.046046,99831.0,99830.0,0.00500823]
[1733660986336,0.406846,99831.0,99830.0,0.00500823]
[1733660986531,0.52670298,99831.0,99830.0,0.00500823]
[1733660986736,0.3618,99831.0,99824.0,0.01134765]
[1733660986939,0.045049,99825.0,99824.0,0.01134765]
[1733660987245,0.045049,99825.0,99824.0,0.01635631]
[1733660988536,0.047049,99825.0,99824.0,0.01635631]
[1733660988937,0.045049,99825.0,99824.0,0.01635631]
[1733660989239,0.048049,99825.0,99824.0,0.01635631]
[1733660991840,0.048049,99825.0,99824.0,0.06140631]
[1733660992138,0.048049,99825.0,99824.0,0.05156121]
[1733660995242,0.048049,99825.0,99824.0,0.05469166]
[1733660996148,0.003,99825.0,99824.0,0.05469166]
[1733660997146,0.003,99825.0,99824.0,0.41549166]
[1733660997445,0.003,99825.0,99824.0,0.05469166]
[1733660998045,0.005,99847.0,99828.0,0.045048]
[1733660998046,0.1198203,99839.0,99828.0,0.045048]
[1733660998248,0.045043,99839.0,99838.0,0.045042]
[1733660998455,0.045043,99839.0,99838.0,0.04817222]
[1733660998751,0.3608,99841.0,99840.0,0.045042]
[1733660999053,0.3608,99841.0,99840.0,0.04817222]
[1733661000253,0.405842,99841.0,99840.0,0.04817222]
[1733661001049,0.410842,99841.0,99840.0,0.04817222]
[1733661002149,0.410842,99841.0,99840.0,0.00313022]
[1733661002452,0.5306623,99841.0,99840.0,0.00313022]
[1733661003051,0.410842,99841.0,99840.0,0.00313022]
[1733661003650,0.771642,99841.0,99840.0,0.00313022]
[1733661004459,0.771642,99841.0,99840.0,0.00813853]
[1733661004750,0.771642,99841.0,99840.0,0.00313022]
[1733661005150,0.771642,99841.0,99840.0,0.00813848]
[1733661005346,0.7266,99841.0,99840.0,0.00813858]
[1733661005549,0.771642,99841.0,99840.0,0.00313022]
[1733661005751,0.771642,99841.0,99840.0,0.00813864]
[1733661006150,0.771642,99841.0,99840.0,0.00813865]
[1733661006451,0.92146323,99841.0,99840.0,0.00813865]
[1733661007043,0.771642,99841.0,99840.0,0.00813865]
[1733661007246,0.92143105,99841.0,99840.0,0.00813865]
[1733661007557,0.771642,99841.0,99840.0,0.00813865]
[1733661007750,0.92143077,99841.0,99840.0,0.00813865]
[1733661008153,0.82032893,99841.0,99840.0,0.00813865]
[1733661009155,1.00020926,99841.0,99840.0,0.00813865]
[1733661009859,0.82032893,99841.0,99840.0,0.00813865]
[1733661010857,0.9719256,99841.0,99840.0,0.00813865]
[1733661011154,0.97200275,99841.0,99840.0,0.00813865]
[1733661011665,0.97200275,99841.0,99840.0,0.00012311]
[1733661011957,0.25040275,99841.0,99840.0,0.00012311]
[1733661012158,0.045045,99834.0,99833.0,0.045045]
[1733661012356,0.09373254,99834.0,99833.0,0.045045]
[1733661012545,0.45453254,99834.0,99833.0,0.045045]
[1733661013548,0.60606585,99834.0,99833.0,0.045045]
[1733661014058,0.60906585,99834.0,99833.0,0.045045]
[1733661015460,0.56402085,99834.0,99824.0,0.00180549]
[1733661015667,0.5859336,99825.0,99824.0,0.00150255]
[1733661015849,0.63462285,99825.0,99824.0,0.00150255]
[1733661016363,0.58957385,99825.0,99820.0,0.00010192]
[1733661016554,0.045051,99821.0,99820.0,0.00010192]
[1733661016858,0.19113543,99821.0,99820.0,0.00010192]
[1733661017053,0.23983024,99821.0,99820.0,0.00010192]
[1733661018577,0.23983024,99821.0,99820.0,0.04515292]
[1733661018862,0.23983024,99821.0,99820.0,0.00010192]
[1733661021068,0.24183024,99821.0,99820.0,0.00010192]
[1733661021764,0.24183024,99821.0,99820.0,0.00511119]
[1733661022261,0.60263024,99821.0,99820.0,0.00511119]
[1733661023563,0.55393543,99821.0,99820.0,0.00511119]
[1733661023766,0.55393543,99821.0,99820.0,0.00824198]
[1733661024071,0.50524062,99821.0,99820.0,0.00824198]
[1733661024266,0.65514623,99821.0,99820.0,0.00824198]
[1733661024568,0.70384124,99821.0,99820.0,1e-08]
[1733661025266,0.85372125,99821.0,99820.0,1e-08]
[1733661025465,1.00342249,99821.0,99805.0,0.01]
[1733661025663,0.045058,99806.0,99805.0,9.712e-05]
[1733661026266,0.076758,99806.0,99805.0,9.712e-05]
[1733661026562,0.076758,99806.0,99805.0,0.00709712]
[1733661026769,0.045064,99793.0,99792.0,0.00180576]
[1733661026955,0.045064,99793.0,99792.0,0.00150303]
[1733661027157,0.045064,99793.0,99792.0,0.00776603]
[1733661028575,0.045064,99793.0,99792.0,0.00150303]
[1733661028955,0.045064,99793.0,99792.0,0.00450303]
[1733661029967,0.045064,99793.0,99792.0,0.01050303]
[1733661031266,0.045064,99793.0,99792.0,0.009]
[1733661033977,0.045069,99780.0,99779.0,0.0952]
[1733661034163,0.11970459,99792.0,99779.0,0.11385987]
[1733661034469,0.045068,99783.0,99781.0,0.045069]
[1733661034689,0.11968204,99793.0,99779.0,0.0952]
[1733661034860,0.045069,99780.0,99779.0,0.0952]
[1733661035061,0.046069,99780.0,99779.0,0.11555001]
[1733661035263,0.046069,99780.0,99779.0,0.12055001]
[1733661036167,0.046069,99780.0,99779.0,0.11428644]
[1733661036369,0.046069,99780.0,99779.0,0.10841823]
[1733661036572,0.045069,99780.0,99779.0,0.10841823]
[1733661037080,0.046069,99780.0,99779.0,0.11741823]
[1733661037674,0.046069,99780.0,99779.0,0.02221823]
[1733661038884,0.046069,99780.0,99779.0,0.02021823]
[1733661039463,0.045069,99780.0,99779.0,0.01121823]
[1733661039677,0.046069,99780.0,99779.0,0.01721823]
[1733661045680,0.406869,99780.0,99759.0,0.01044522]
[1733661045877,0.3608,99765.0,99757.0,0.00030247]
[1733661046182,0.045082,99753.0,99752.0,0.0967]
[1733661046379,0.045082,99753.0,99752.0,0.09700247]
[1733661046579,0.045082,99753.0,99752.0,0.0967]
[1733661046775,0.045082,99753.0,99752.0,0.09677125]
[1733661047383,0.045082,99753.0,99752.0,0.06527125]
[1733661047680,0.045082,99753.0,99752.0,7.125e-05]
[1733661047681,0.04520227,99753.0,99752.0,7.125e-05]
[1733661048876,0.04520227,99753.0,99752.0,0.00407125]
[1733661049085,0.04520227,99753.0,99752.0,0.00607125]
[1733661050075,0.00012027,99753.0,99752.0,0.05115325]
[1733661050383,0.00012027,99753.0,99752.0,0.06354316]
[1733661050680,0.045076,99766.0,99752.0,0.06354316]
[1733661050681,0.045076,99766.0,99765.0,0.045076]
[1733661051088,0.045073,99772.0,99771.0,0.045072]
[1733661052888,0.046073,99772.0,99771.0,0.045072]
[1733661053090,0.050073,99772.0,99771.0,0.045072]
[1733661054183,0.005,99772.0,99771.0,0.045072]
[1733661054592,0.050073,99772.0,99771.0,0.045072]
[1733661055285,0.045075,99768.0,99767.0,0.00030252]
[1733661055483,0.04508,99756.0,99755.0,0.22448501]
[1733661055684,0.08973353,99760.0,99755.0,0.01741411]
[1733661055880,0.08973353,99759.0,99758.0,0.045079]
[1733661056099,0.08973353,99759.0,99758.0,0.06249311]
[1733661056392,0.13481253,99759.0,99758.0,0.06249311]
[1733661056581,0.045079,99759.0,99758.0,0.06249311]
[1733661057187,0.045079,99759.0,99758.0,0.06449311]
[1733661057902,0.08973353,99763.0,99758.0,0.06762543]
[1733661058196,0.045078,99763.0,99762.0,0.045077]
[1733661058390,0.045078,99763.0,99762.0,0.05322094]
[1733661058788,0.045078,99763.0,99762.0,0.05322096]
[1733661060299,0.045078,99763.0,99762.0,0.00814396]
[1733661060696,0.16474555,99763.0,99762.0,0.00814396]
[1733661061095,0.045078,99763.0,99762.0,0.00814396]
[1733661061289,0.16474555,99763.0,99762.0,0.00814396]
[1733661061985,0.045078,99763.0,99762.0,0.01440917]
[1733661062188,0.16474555,99763.0,99762.0,0.01440917]
[1733661063195,0.045078,99763.0,99762.0,0.01440917]
[1733661063603,0.16481106,99763.0,99762.0,0.01440917]
[1733661064694,0.045078,99763.0,99762.0,0.01440917]
[1733661066495,0.405878,99763.0,99762.0,0.01440917]
[1733661067193,0.55548263,99763.0,99762.0,0.01440917]
[1733661067405,0.405878,99763.0,99762.0,0.00814396]
[1733661067999,0.409878,99763.0,99762.0,0.00814396]
[1733661068199,0.55957777,99763.0,99762.0,0.00814396]
[1733661068389,0.75799753,99763.0,99762.0,0.00814396]
[1733661068594,0.75799753,99763.0,99762.0,0.01440928]
[1733661068992,0.75799753,99763.0,99762.0,0.00814396]
[1733661069300,0.76699753,99763.0,99762.0,0.00814396]
[1733661069496,0.76699753,99763.0,99762.0,0.008145]
[1733661069700,0.76299753,99763.0,99762.0,0.008145]
[1733661069893,0.76799753,99763.0,99762.0,0.008145]
[1733661070097,0.94749167,99763.0,99762.0,0.008145]
[1733661070396,0.76799753,99763.0,99762.0,0.008145]
[1733661070592,0.76799753,99763.0,99762.0,0.00047002]
[1733661070795,0.78839413,99763.0,99762.0,0.00047002]
[1733661071397,0.78339413,99763.0,99762.0,0.00047002]
[1733661071697,0.78839413,99763.0,99762.0,0.00047002]
[1733661071899,0.78839413,99763.0,99752.0,7.125e-05]
[1733661071900,0.045082,99753.0,99752.0,7.125e-05]
[1733661072093,0.405882,99753.0,99752.0,7.125e-05]
[1733661072293,0.5555902,99753.0,99752.0,7.125e-05]
[1733661072698,0.405882,99753.0,99752.0,7.125e-05]
[1733661072897,0.55560267,99753.0,99752.0,7.125e-05]
[1733661073100,0.55860267,99753.0,99752.0,7.125e-05]
[1733661073306,0.408882,99753.0,99752.0,0.04515325]
[1733661073497,0.003,99753.0,99752.0,0.04515325]
[1733661073698,0.16787603,99753.0,99752.0,7.125e-05]
[1733661073905,0.055082,99753.0,99752.0,7.125e-05]
[1733661074101,0.056082,99753.0,99752.0,7.125e-05]
[1733661074500,0.057082,99753.0,99752.0,7.125e-05]
[1733661074907,0.20684718,99753.0,99752.0,7.125e-05]
[1733661075108,0.20584718,99753.0,99752.0,7.125e-05]
[1733661075310,0.056082,99753.0,99752.0,7.125e-05]
[1733661075604,0.20587924,99753.0,99752.0,7.125e-05]
[1733661075810,0.10480848,99753.0,99752.0,7.125e-05]
[1733661076111,0.056082,99753.0,99752.0,0.00633708]
[1733661076498,0.048082,99753.0,99752.0,0.00633708]
[1733661076810,0.056082,99753.0,99752.0,0.04515325]
[1733661077300,0.17491703,99753.0,99752.0,0.04515325]
[1733661077498,0.055082,99753.0,99752.0,0.04515325]
[1733661078007,0.1449612,99753.0,99752.0,0.04515325]
[1733661078199,0.14496787,99753.0,99752.0,0.04515325]
[1733661078602,0.09988587,99753.0,99752.0,0.04515325]
[1733661078808,0.01,99753.0,99752.0,0.05141826]
[1733661079608,0.01,99753.0,99752.0,0.06386136]
[1733661079800,0.003,99753.0,99752.0,0.05759635]
[1733661080001,0.01,99753.0,99752.0,0.05759635]
[1733661080615,0.01,99753.0,99752.0,0.06260825]
[1733661081204,0.01,99753.0,99752.0,0.24201226]
[1733661082402,0.01,99753.0,99752.0,0.06260825]
[1733661082603,0.01,99753.0,99752.0,0.06574061]
[1733661083209,0.01,99753.0,99752.0,0.06574036]
[1733661083409,0.01,99753.0,99752.0,0.2559625]
[1733661084309,0.09990686,99753.0,99752.0,0.07591012]
[1733661084712,0.01,99753.0,99752.0,0.07591012]
[1733661084903,0.01,99753.0,99752.0,0.08217509]
[1733661085411,0.01,99753.0,99752.0,0.26225131]
[1733661085807,0.01,99753.0,99752.0,0.08217509]
[1733661089709,0.01,99753.0,99752.0,0.07277781]
[1733661089909,0.01,99753.0,99752.0,0.07591061]
[1733661091415,0.10001269,99753.0,99752.0,0.07591061]
[1733661092013,0.01,99753.0,99752.0,0.07591061]
[1733661092530,0.1000136,99753.0,99752.0,0.07591061]
[1733661092818,0.01,99753.0,99752.0,0.07591061]
[1733661093412,0.10000973,99753.0,99752.0,0.07591061]
[1733661094220,0.10000959,99753.0,99752.0,0.07591061]
[1733661094519,0.055082,99753.0,99752.0,0.07591061]
[1733661094720,0.055082,99753.0,99752.0,0.00821575]
[1733661094922,0.055082,99753.0,99752.0,0.0144811]
[1733661098629,0.10380724,99753.0,99752.0,0.0144811]
[1733661099025,0.10380724,99753.0,99752.0,0.00821575]
[1733661099536,0.24454967,99753.0,99752.0,0.00821575]
[1733661099830,0.29327491,99753.0,99752.0,0.00821575]
[1733661100222,0.11362507,99753.0,99752.0,0.00821575]
[1733661100926,0.045087,99740.0,99739.0,0.00030319]
[1733661101235,0.045087,99740.0,99739.0,0.01245178]
[1733661101435,0.3608,99741.0,99733.0,0.22524147]
[1733661101436,0.045089,99736.0,99735.0,0.00030319]
[1733661101639,0.14989672,99740.0,99733.0,0.04539419]
[1733661101831,0.36160001,99741.0,99733.0,0.04539419]
[1733661101832,0.04509,99734.0,99733.0,0.05520906]
[1733661102136,0.16496209,99734.0,99733.0,0.06777127]
[1733661103023,0.04509,99734.0,99733.0,0.06777127]
[1733661103232,0.04509,99734.0,99733.0,0.0001084]
[1733661103428,0.04509,99734.0,99733.0,0.0011084]
[1733661104131,0.04509,99734.0,99733.0,0.0021084]
[1733661104324,0.04509,99734.0,99733.0,0.0011084]
[1733661104832,0.04509,99734.0,99733.0,0.0001084]
[1733661106733,0.0305,99735.0,99734.0,0.04509]
[1733661106940,0.08980096,99735.0,99733.0,0.0001084]
[1733661107126,0.08980096,99738.0,99737.0,0.045089]
[1733661107530,0.08980096,99739.0,99738.0,0.045088]
[1733661108439,0.13488896,99739.0,99738.0,0.045088]
[1733661109245,0.13588896,99739.0,99738.0,0.045088]
[1733661109735,0.13888896,99739.0,99738.0,0.045088]
[1733661109933,0.13888896,99739.0,99738.0,0.05135437]
[1733661110133,0.049088,99739.0,99738.0,0.05135437]
[1733661110536,0.049088,99739.0,99738.0,0.045088]
[1733661110738,0.13888896,99739.0,99738.0,0.05135437]
[1733661110936,0.13888896,99739.0,99738.0,0.05010109]
[1733661111141,0.049088,99739.0,99738.0,0.05010109]
[1733661111445,0.13888896,99739.0,99738.0,0.00501309]
[1733661111740,0.049088,99739.0,99738.0,0.00501309]
[1733661112332,0.16882384,99739.0,99738.0,0.00501309]
[1733661113035,0.049088,99739.0,99738.0,0.00814644]
[1733661114034,0.04509,99734.0,99733.0,0.0001084]
[1733661114236,0.04509,99734.0,99733.0,0.00512185]
[1733661114533,0.04509,99734.0,99733.0,0.00825521]
[1733661116037,0.04609,99734.0,99733.0,0.00825521]
[1733661116938,0.05209,99734.0,99733.0,0.00825521]
[1733661117341,0.04609,99734.0,99733.0,0.00825521]
[1733661117543,0.05109,99734.0,99733.0,0.00825522]
[1733661117842,0.05209,99734.0,99733.0,0.00825522]
[1733661118142,0.14184097,99734.0,99733.0,0.00825522]
[1733661118946,0.05209,99734.0,99733.0,0.00825522]
[1733661119448,0.05309,99734.0,99733.0,0.00825522]
[1733661119745,0.04809,99734.0,99733.0,0.00825522]
[1733661119942,0.05409,99734.0,99733.0,0.00825522]
[1733661120245,0.17378261,99734.0,99733.0,0.00825522]
[1733661120940,0.16778261,99734.0,99733.0,0.0001084]
[1733661121141,0.16778261,99734.0,99733.0,0.00825556]
[1733661121142,0.04809,99734.0,99733.0,0.00825556]